[Event "Magnus Carlsen Invitational 2021"]
[Site "Online"]
[Date "2021.03.10"]
[Round "8.2"]
[White "Mamedyarov, Shakhriyar"]
[Black "Anton Guijarro, David"]
[Result "0-1"]
[ECO "B22"]
[WhiteElo "2761"]
[BlackElo "2674"]
[Annotator "ChessBase"]
[PlyCount "88"]
[EventDate "2021.03.13"]
[EventType "tourn"]
[EventCountry "NET"]
[Tiebreak "Koya+Number of black wins+Number of wins"]
[SourceTitle "playchess.com"]
[Source "ChessBase"]
[SourceQuality "1"]
[TimeControl "900+10"]

1. e4 {[%emt 0:00:00]} c5 {[%emt 0:00:00]} 2. c3 {[%emt 0:00:00]} Nf6 {[%emt 0:
00:00]} 3. e5 {[%emt 0:00:00]} Nd5 {[%emt 0:00:00]} 4. Bc4 {[%emt 0:00:00]} Nb6
{[%emt 0:00:18]} 5. Bb3 {[%emt 0:00:00]} Nc6 {[%emt 0:00:24]} 6. d4 {[%emt 0:
00:24]} cxd4 {[%emt 0:00:18]} 7. cxd4 {[%emt 0:00:00]} d5 {[%emt 0:00:17]} 8.
Nc3 {[%emt 0:01:02]} Bf5 {[%emt 0:00:17]} 9. h4 {[%emt 0:00:02]} h5 {[%emt 0:
00:55]} 10. Bg5 {[%emt 0:01:15]} f6 {[%emt 0:00:16]} 11. exf6 {[%emt 0:00:02]}
gxf6 {[%emt 0:00:01]} 12. Be3 {[%emt 0:00:03]} e6 {[%emt 0:00:07]} 13. Nge2 {
[%emt 0:00:04]} Bd6 {[%emt 0:00:08]} 14. Nf4 {[%emt 0:00:52]} Kf7 {[%emt 0:01:
15]} 15. Nxh5 {[%emt 0:01:55]} Qg8 {[%emt 0:00:53]} 16. Qf3 {[%emt 0:00:03]}
Qg4 {[%emt 0:03:11]} 17. Qxg4 {[%emt 0:00:59]} Bxg4 {[%emt 0:00:00]} 18. Ng3 {
[%emt 0:00:10]} Rag8 {[%emt 0:00:04]} 19. Rc1 {[%emt 0:01:12]} a6 {[%emt 0:01:
01]} 20. Kf1 {[%emt 0:03:39]} Bxg3 {[%emt 0:01:50]} 21. fxg3 {[%emt 0:00:03]}
Bf5 {[%emt 0:00:00]} 22. Ne2 {[%emt 0:01:16]} Bd3 {[%emt 0:00:17]} 23. Rd1 {
[%emt 0:01:03]} Bxe2+ {[%emt 0:00:19]} 24. Kxe2 {[%emt 0:00:00]} Rxg3 {[%emt 0:
00:03]} 25. Kf2 {[%emt 0:00:04]} Rhg8 {[%emt 0:00:59]} 26. Rh2 {[%emt 0:00:02]}
R3g4 {[%emt 0:01:10]} 27. h5 {[%emt 0:00:34]} Na5 {[%emt 0:00:40]} 28. Bc2 {
[%emt 0:00:25]} Nbc4 {[%emt 0:01:02]} 29. Bg6+ {[%emt 0:00:49]} Ke7 {[%emt 0:
00:07]} 30. Bc1 {[%emt 0:01:10]} Nc6 {[%emt 0:00:51]} 31. b3 {[%emt 0:01:26]}
Nd6 {[%emt 0:00:02]} 32. Be3 {[%emt 0:00:24]} f5 {[%emt 0:00:32]} 33. Rh3 {
[%emt 0:01:07]} Ne4+ {[%emt 0:00:21]} 34. Kg1 {[%emt 0:00:03]} Kf6 {[%emt 0:00:
15]} 35. Rf1 {[%emt 0:00:31]} Rh8 {[%emt 0:01:13]} 36. Kh2 {[%emt 0:00:11]} Rc8
{[%emt 0:00:53]} 37. Rc1 {[%emt 0:00:06]} Rg8 {[%emt 0:00:09]} 38. Rf1 {
[%emt 0:00:04]} Nd6 {[%emt 0:00:33]} 39. Bf4 {[%emt 0:00:14]} Nb5 {[%emt 0:00:
12]} 40. Bc1 {[%emt 0:00:14]} Ne7 {[%emt 0:00:15]} 41. a4 {[%emt 0:00:07]} Nxd4
{[%emt 0:00:05]} 42. Bb2 {[%emt 0:00:01]} Nxg6 {[%emt 0:00:04]} 43. hxg6 {
[%emt 0:00:00]} R8xg6 {[%emt 0:00:04]} 44. g3 {[%emt 0:00:04]} Re4 {[%emt 0:00:
05]} 0-1

[Event "Magnus Carlsen Invitational 2021"]
[Site "Online"]
[Date "2021.03.10"]
[Round "8.3"]
[White "Nepomniachtchi, Ian"]
[Black "Carlsen, Magnus"]
[Result "0-1"]
[ECO "B33"]
[WhiteElo "2778"]
[BlackElo "2881"]
[Annotator "ChessBase"]
[PlyCount "108"]
[EventDate "2021.03.13"]
[EventType "tourn"]
[EventCountry "NET"]
[Tiebreak "Koya+Number of black wins+Number of wins"]
[SourceTitle "playchess.com"]
[Source "ChessBase"]
[SourceQuality "1"]
[TimeControl "900+10"]

1. e4 {[%emt 0:00:00]} c5 {[%emt 0:00:00]} 2. Nf3 {[%emt 0:00:00]} Nc6 {
[%emt 0:00:00]} 3. d4 {[%emt 0:00:00]} cxd4 {[%emt 0:00:00]} 4. Nxd4 {[%emt 0:
00:00]} Nf6 {[%emt 0:00:00]} 5. Nc3 {[%emt 0:00:00]} e5 {[%emt 0:00:00]} 6.
Ndb5 {[%emt 0:00:00]} d6 {[%emt 0:00:02]} 7. Bg5 {[%emt 0:00:00]} a6 {[%emt 0:
00:01]} 8. Na3 {[%emt 0:00:00]} b5 {[%emt 0:00:01]} 9. Nd5 {[%emt 0:00:01]} Be7
{[%emt 0:00:01]} 10. Bxf6 {[%emt 0:00:08]} Bxf6 {[%emt 0:00:00]} 11. c3 {
[%emt 0:00:01]} Ne7 {[%emt 0:00:16]} 12. Nxf6+ {[%emt 0:00:28]} gxf6 {[%emt 0:
00:00]} 13. Nc2 {[%emt 0:00:02]} Bb7 {[%emt 0:00:08]} 14. Bd3 {[%emt 0:00:16]}
d5 {[%emt 0:00:18]} 15. Qe2 {[%emt 0:01:09]} f5 {[%emt 0:00:05]} 16. O-O-O {
[%emt 0:00:26]} fxe4 {[%emt 0:01:31]} 17. Bxe4 {[%emt 0:00:03]} Qc7 {[%emt 0:
00:15]} 18. Bf3 {[%emt 0:00:04]} O-O-O {[%emt 0:00:14]} 19. g3 {[%emt 0:00:22]}
Kb8 {[%emt 0:00:19]} 20. Kb1 {[%emt 0:00:04]} Nc8 {[%emt 0:01:26]} 21. Rhe1 {
[%emt 0:00:16]} Rhe8 {[%emt 0:00:13]} 22. Ne3 {[%emt 0:02:03]} Nb6 {[%emt 0:00:
10]} 23. Qc2 {[%emt 0:00:07]} f6 {[%emt 0:00:57]} 24. Bg2 {[%emt 0:01:11]} Rd6
{[%emt 0:00:13]} 25. Rd2 {[%emt 0:00:50]} Red8 {[%emt 0:01:11]} 26. Red1 {
[%emt 0:01:03]} a5 {[%emt 0:00:24]} 27. a3 {[%emt 0:03:04]} Nc4 {[%emt 0:03:11]
} 28. Nxc4 {[%emt 0:00:03]} bxc4 {[%emt 0:00:00]} 29. Qf5 {[%emt 0:01:02]} Ka7
{[%emt 0:00:40]} 30. Ka1 {[%emt 0:00:31]} Qd7 {[%emt 0:00:38]} 31. Qh5 {
[%emt 0:00:26]} Qc7 {[%emt 0:01:09]} 32. f4 {[%emt 0:00:59]} e4 {[%emt 0:00:20]
} 33. Rd4 {[%emt 0:00:02]} Bc6 {[%emt 0:01:11]} 34. R1d2 {[%emt 0:01:45]} Be8 {
[%emt 0:00:17]} 35. Qe2 {[%emt 0:00:25]} Bc6 {[%emt 0:01:18]} 36. Qe3 {[%emt 0:
01:01]} Qb6 {[%emt 0:00:14]} 37. f5 {[%emt 0:00:02]} R6d7 {[%emt 0:00:17]} 38.
Qh6 {[%emt 0:00:08]} Ba4 {[%emt 0:01:59]} 39. g4 {[%emt 0:00:02]} Ka6 {[%emt 0:
00:06]} 40. Bf1 {[%emt 0:00:17]} Ka7 {[%emt 0:00:42]} 41. h4 {[%emt 0:00:12]}
Rb7 {[%emt 0:00:19]} 42. Qe3 {[%emt 0:00:23]} Rdb8 {[%emt 0:00:33]} 43. g5 {
[%emt 0:00:05]} Bd7 {[%emt 0:00:20]} 44. gxf6 {[%emt 0:01:07]} Bxf5 {[%emt 0:
00:02]} 45. Qg5 {[%emt 0:00:18]} Be6 {[%emt 0:00:03]} 46. Bxc4 {[%emt 0:00:59]}
Rg8 {[%emt 0:00:22]} 47. Qe5 {[%emt 0:01:02]} Rg1+ {[%emt 0:00:02]} 48. Ka2 {
[%emt 0:00:01]} dxc4 {[%emt 0:00:01]} 49. b4 {[%emt 0:00:01]} cxb3+ {[%emt 0:
00:28]} 50. Kb2 {[%emt 0:00:02]} e3 {[%emt 0:00:00]} 51. Qxe3 {[%emt 0:00:09]}
Ra1 {[%emt 0:00:16]} 52. Qe5 {[%emt 0:00:48]} Ra2+ {[%emt 0:00:04]} 53. Kb1 {
[%emt 0:00:01]} Rxd2 {[%emt 0:00:10]} 54. Rxd2 {[%emt 0:00:12]} b2 {[%emt 0:00:
02]} 0-1

[Event "Magnus Carlsen Invitational 2021"]
[Site "Online"]
[Date "2021.03.10"]
[Round "8.6"]
[White "Pichot, Alan"]
[Black "Van Foreest, Jorden"]
[Result "1/2-1/2"]
[ECO "C53"]
[WhiteElo "2548"]
[BlackElo "2543"]
[Annotator "ChessBase"]
[PlyCount "112"]
[EventDate "2021.03.13"]
[EventType "tourn"]
[EventCountry "NET"]
[Tiebreak "Koya+Number of black wins+Number of wins"]
[SourceTitle "playchess.com"]
[Source "ChessBase"]
[SourceQuality "1"]
[TimeControl "900+10"]

1. e4 {[%emt 0:00:00]} e5 {[%emt 0:00:00]} 2. Nf3 {[%emt 0:00:00]} Nc6 {
[%emt 0:00:00]} 3. Bc4 {[%emt 0:00:12]} Bc5 {[%emt 0:00:00]} 4. c3 {[%emt 0:00:
01]} d6 {[%emt 0:00:00]} 5. d4 {[%emt 0:00:16]} Bb6 {[%emt 0:00:15]} 6. dxe5 {
[%emt 0:00:46]} Bg4 {[%emt 0:00:09]} 7. exd6 {[%emt 0:00:47]} Nf6 {[%emt 0:00:
20]} 8. h3 {[%emt 0:01:50]} Bxf3 {[%emt 0:00:05]} 9. Qxf3 {[%emt 0:00:03]} Qxd6
{[%emt 0:01:03]} 10. Bf4 {[%emt 0:00:53]} Ne5 {[%emt 0:00:34]} 11. Bxe5 {
[%emt 0:00:45]} Qxe5 {[%emt 0:00:02]} 12. Nd2 {[%emt 0:00:02]} O-O-O {[%emt 0:
00:42]} 13. O-O-O {[%emt 0:00:37]} Rd7 {[%emt 0:00:31]} 14. Qf5 {[%emt 0:03:50]
} Qxf5 {[%emt 0:00:28]} 15. exf5 {[%emt 0:00:00]} Bxf2 {[%emt 0:00:33]} 16. Nf3
{[%emt 0:00:02]} Re7 {[%emt 0:00:28]} 17. g4 {[%emt 0:00:51]} Ne4 {[%emt 0:01:
21]} 18. Kc2 {[%emt 0:01:51]} Rhe8 {[%emt 0:00:55]} 19. Rh2 {[%emt 0:00:27]}
Bc5 {[%emt 0:00:41]} 20. b4 {[%emt 0:01:19]} Be3 {[%emt 0:01:01]} 21. Bd5 {
[%emt 0:01:51]} Nf6 {[%emt 0:00:23]} 22. Re2 {[%emt 0:00:28]} Nxd5 {[%emt 0:00:
14]} 23. Rxd5 {[%emt 0:00:00]} c6 {[%emt 0:00:03]} 24. Rd1 {[%emt 0:00:17]} Bf4
{[%emt 0:00:46]} 25. Rxe7 {[%emt 0:00:02]} Rxe7 {[%emt 0:00:00]} 26. Rd4 {
[%emt 0:00:04]} Be3 {[%emt 0:01:03]} 27. Rc4 {[%emt 0:00:35]} Bb6 {[%emt 0:01:
15]} 28. b5 {[%emt 0:00:36]} Kd7 {[%emt 0:00:39]} 29. bxc6+ {[%emt 0:00:03]}
bxc6 {[%emt 0:00:00]} 30. Kd2 {[%emt 0:00:18]} Kd6 {[%emt 0:00:25]} 31. Rb4 {
[%emt 0:00:15]} h6 {[%emt 0:00:22]} 32. a4 {[%emt 0:00:12]} Kd5 {[%emt 0:00:29]
} 33. a5 {[%emt 0:01:06]} Bxa5 {[%emt 0:00:03]} 34. Rd4+ {[%emt 0:00:02]} Kc5 {
[%emt 0:00:02]} 35. f6 {[%emt 0:00:05]} gxf6 {[%emt 0:00:02]} 36. Rf4 {[%emt 0:
00:01]} Bd8 {[%emt 0:01:27]} 37. Rf5+ {[%emt 0:00:03]} Kb6 {[%emt 0:00:14]} 38.
Rh5 {[%emt 0:00:20]} Bc7 {[%emt 0:00:01]} 39. Kc2 {[%emt 0:00:12]} Re3 {
[%emt 0:00:23]} 40. Rf5 {[%emt 0:00:02]} Be5 {[%emt 0:01:01]} 41. Kd2 {[%emt 0:
00:20]} Re4 {[%emt 0:00:03]} 42. Nxe5 {[%emt 0:00:05]} fxe5 {[%emt 0:00:04]}
43. Rxf7 {[%emt 0:00:01]} Rf4 {[%emt 0:00:11]} 44. Rxf4 {[%emt 0:00:29]} exf4 {
[%emt 0:00:02]} 45. h4 {[%emt 0:00:00]} a5 {[%emt 0:01:15]} 46. g5 {[%emt 0:00:
03]} hxg5 {[%emt 0:00:10]} 47. hxg5 {[%emt 0:00:24]} a4 {[%emt 0:00:01]} 48. g6
{[%emt 0:00:02]} a3 {[%emt 0:00:02]} 49. g7 {[%emt 0:00:13]} a2 {[%emt 0:00:01]
} 50. g8=Q {[%emt 0:00:02]} a1=Q {[%emt 0:00:00]} 51. Qb8+ {[%emt 0:00:05]} Kc5
{[%emt 0:00:01]} 52. Qb4+ {[%emt 0:00:10]} Kd5 {[%emt 0:00:02]} 53. Qd4+ {
[%emt 0:00:03]} Ke6 {[%emt 0:00:02]} 54. Qe4+ {[%emt 0:00:06]} Kd7 {[%emt 0:00:
01]} 55. Qd4+ {[%emt 0:00:02]} Kc8 {[%emt 0:00:08]} 56. Qxf4 {[%emt 0:00:09]}
Qb2+ {[%emt 0:00:02]} 1/2-1/2

[Event "Magnus Carlsen Invitational 2021"]
[Site "Online"]
[Date "2021.03.10"]
[Round "8.8"]
[White "Aronian, Levon"]
[Black "Dubov, Daniil"]
[Result "1/2-1/2"]
[ECO "B60"]
[WhiteElo "2778"]
[BlackElo "2770"]
[Annotator "ChessBase"]
[PlyCount "114"]
[EventDate "2021.03.13"]
[EventType "tourn"]
[EventCountry "NET"]
[Tiebreak "Koya+Number of black wins+Number of wins"]
[SourceTitle "playchess.com"]
[Source "ChessBase"]
[SourceQuality "1"]
[TimeControl "900+10"]

1. e4 {[%emt 0:00:00]} c5 {[%emt 0:00:00]} 2. Nf3 {[%emt 0:00:00]} d6 {[%emt 0:
00:00]} 3. d4 {[%emt 0:00:00]} cxd4 {[%emt 0:00:00]} 4. Nxd4 {[%emt 0:00:00]}
Nf6 {[%emt 0:00:00]} 5. Nc3 {[%emt 0:00:00]} Nc6 {[%emt 0:00:00]} 6. Bg5 {
[%emt 0:00:00]} g6 {[%emt 0:00:00]} 7. Bxf6 {[%emt 0:01:11]} exf6 {[%emt 0:00:
00]} 8. Bb5 {[%emt 0:00:44]} Bd7 {[%emt 0:00:00]} 9. Nde2 {[%emt 0:01:14]} Be6
{[%emt 0:00:00]} 10. Qd2 {[%emt 0:00:58]} Bg7 {[%emt 0:00:16]} 11. Nf4 {
[%emt 0:01:42]} O-O {[%emt 0:00:15]} 12. Nxe6 {[%emt 0:00:12]} fxe6 {[%emt 0:
00:02]} 13. Rd1 {[%emt 0:00:02]} f5 {[%emt 0:00:35]} 14. Qxd6 {[%emt 0:00:55]}
Nd4 {[%emt 0:01:31]} 15. Qxd8 {[%emt 0:00:04]} Rfxd8 {[%emt 0:00:02]} 16. Bd3 {
[%emt 0:00:33]} b5 {[%emt 0:01:00]} 17. exf5 {[%emt 0:00:29]} gxf5 {[%emt 0:00:
39]} 18. Nxb5 {[%emt 0:00:35]} Nxb5 {[%emt 0:00:06]} 19. Bxb5 {[%emt 0:00:00]}
Rxd1+ {[%emt 0:00:32]} 20. Kxd1 {[%emt 0:00:02]} Bxb2 {[%emt 0:00:00]} 21. Ke2
{[%emt 0:00:08]} Rc8 {[%emt 0:01:28]} 22. Ba4 {[%emt 0:03:26]} Rc7 {[%emt 0:01:
47]} 23. Rd1 {[%emt 0:00:21]} Kf7 {[%emt 0:00:22]} 24. Bb3 {[%emt 0:01:07]} Ke7
{[%emt 0:00:29]} 25. Kf1 {[%emt 0:00:30]} Rd7 {[%emt 0:00:41]} 26. Re1 {
[%emt 0:00:02]} e5 {[%emt 0:00:12]} 27. Re3 {[%emt 0:00:09]} Kf6 {[%emt 0:00:
47]} 28. Rh3 {[%emt 0:00:20]} Kg5 {[%emt 0:01:15]} 29. Be6 {[%emt 0:01:15]} Re7
{[%emt 0:00:37]} 30. Bd5 {[%emt 0:00:13]} e4 {[%emt 0:01:19]} 31. Ke2 {[%emt 0:
00:12]} Bd4 {[%emt 0:00:26]} 32. Rb3 {[%emt 0:00:16]} Rc7 {[%emt 0:00:44]} 33.
c4 {[%emt 0:00:06]} Rc5 {[%emt 0:00:21]} 34. Ra3 {[%emt 0:01:02]} Rc8 {[%emt 0:
00:16]} 35. f3 {[%emt 0:01:16]} exf3+ {[%emt 0:00:42]} 36. Rxf3 {[%emt 0:00:25]
} Re8+ {[%emt 0:01:27]} 37. Kd3 {[%emt 0:00:53]} Bc5 {[%emt 0:00:04]} 38. Rh3 {
[%emt 0:00:17]} Re7 {[%emt 0:00:45]} 39. Rg3+ {[%emt 0:00:02]} Kf4 {[%emt 0:00:
08]} 40. Kd2 {[%emt 0:00:30]} Re3 {[%emt 0:00:41]} 41. Rg7 {[%emt 0:00:02]} Ra3
{[%emt 0:00:11]} 42. Rxh7 {[%emt 0:00:03]} Rxa2+ {[%emt 0:00:02]} 43. Kd3 {
[%emt 0:00:15]} a5 {[%emt 0:00:26]} 44. Rc7 {[%emt 0:00:03]} Ra3+ {[%emt 0:00:
05]} 45. Kc2 {[%emt 0:00:02]} Bb4 {[%emt 0:00:01]} 46. Kb2 {[%emt 0:00:11]} Rc3
{[%emt 0:00:38]} 47. Rb7 {[%emt 0:00:30]} Re3 {[%emt 0:00:16]} 48. Bf3 {
[%emt 0:00:20]} Rc3 {[%emt 0:00:10]} 49. Bd5 {[%emt 0:00:08]} Re3 {[%emt 0:00:
02]} 50. h4 {[%emt 0:00:14]} Kg4 {[%emt 0:00:19]} 51. Rh7 {[%emt 0:00:03]} a4 {
[%emt 0:00:11]} 52. Bf3+ {[%emt 0:00:01]} Kf4 {[%emt 0:00:12]} 53. Rb7 {
[%emt 0:00:17]} Rb3+ {[%emt 0:00:36]} 54. Ka2 {[%emt 0:00:01]} Ra3+ {[%emt 0:
00:01]} 55. Kb2 {[%emt 0:00:02]} Rb3+ {[%emt 0:00:01]} 56. Ka2 {[%emt 0:00:01]}
Ra3+ {[%emt 0:00:01]} 57. Kb2 {[%emt 0:00:00]} Rb3+ {[%emt 0:00:01]} 1/2-1/2

[Event "Magnus Carlsen Invitational 2021"]
[Site "Online"]
[Date "2021.03.10"]
[Round "9.1"]
[White "Dubov, Daniil"]
[Black "Giri, Anish"]
[Result "1/2-1/2"]
[ECO "D41"]
[WhiteElo "2770"]
[BlackElo "2731"]
[Annotator "RC"]
[PlyCount "93"]
[EventDate "2021.03.13"]
[EventType "tourn"]
[EventCountry "NET"]
[Tiebreak "Koya+Number of black wins+Number of wins"]
[SourceTitle "playchess.com"]
[Source "ChessBase"]
[SourceQuality "1"]
[TimeControl "900+10"]

1. d4 {[%emt 0:00:00]} Nf6 {[%emt 0:00:00]} 2. c4 {[%emt 0:00:00]} e6 {[%emt 0:
00:01]} 3. Nf3 {[%emt 0:00:00]} d5 {[%emt 0:00:26]} 4. Nc3 {[%emt 0:00:00]} c5
{[%emt 0:00:11]} 5. cxd5 {[%emt 0:00:27]} cxd4 {[%emt 0:00:02]} 6. Qxd4 {
[%emt 0:00:49]} exd5 {[%emt 0:00:03]} 7. e4 {[%emt 0:00:01]} dxe4 {[%emt 0:00:
02]} 8. Qxd8+ {[%emt 0:00:02]} Kxd8 {[%emt 0:00:00]} 9. Ng5 {[%emt 0:00:01]}
Be6 {[%emt 0:00:01]} 10. Nxe6+ {[%emt 0:00:45]} fxe6 {[%emt 0:00:02]} 11. Bg5 {
[%emt 0:00:00]} Nc6 {[%emt 0:00:02]} 12. O-O-O+ {[%emt 0:00:28]} Ke8 {[%emt 0:
00:02]} 13. Bb5 {[%emt 0:00:40]} Rc8 {[%emt 0:00:04]} 14. Kb1 {[%emt 0:00:04]}
Bb4 {[%emt 0:00:14]} 15. Bxf6 {[%emt 0:00:28]} gxf6 {[%emt 0:00:00]} 16. Nxe4 {
[%emt 0:00:02]} f5 {[%emt 0:00:25]} 17. Ng5 {[%emt 0:00:56]} Ke7 {[%emt 0:00:
09]} 18. a3 {[%emt 0:00:20]} Ba5 {[%emt 0:00:18]} 19. Bc4 {[%emt 0:00:50]} Nd8
{[%emt 0:01:34]} 20. Bb5 {[%emt 0:01:53]} Nc6 {[%emt 0:00:03]} 21. b4 {[%emt 0:
00:54]} Bb6 {[%emt 0:02:08]} 22. Rhe1 {[%emt 0:01:20]} Nd4 {[%emt 0:01:26]} 23.
Rxd4 {[%emt 0:00:59]} Bxd4 {[%emt 0:00:05]} 24. Rxe6+ {[%emt 0:00:02]} Kf8 {
[%emt 0:00:07]} 25. Rd6 {[%emt 0:00:04]} h6 {[%emt 0:02:25]} 26. Nf3 {[%emt 0:
01:07]} Bxf2 {[%emt 0:00:39]} 27. Ne5 {[%emt 0:00:32]} Rg8 {[%emt 0:03:54]} 28.
Ng6+ {[%emt 0:03:09]} Kf7 {[%emt 0:00:36]} 29. Bc4+ {[%emt 0:00:28]} Rxc4 {
[%emt 0:00:05]} 30. Ne5+ {[%emt 0:00:00]} Ke7 {[%emt 0:00:06]} 31. Nxc4 {
[%emt 0:00:00]} b5 {[%emt 0:00:52]} 32. Rd2 {[%emt 0:00:03]} Rxg2 {[%emt 0:00:
05]} 33. Nd6 {[%emt 0:00:20]} f4 {[%emt 0:00:42]} 34. Nxb5 {[%emt 0:00:04]}
Rxh2 {[%emt 0:00:17]} 35. Kc2 {[%emt 0:00:30]} Bg1 {[%emt 0:00:57]} 36. Rxh2 {
[%emt 0:00:13]} Bxh2 {[%emt 0:00:00]} 37. Kd3 {[%emt 0:00:36]} h5 {[%emt 0:01:
15]} 38. Ke4 {[%emt 0:00:05]} a6 {[%emt 0:00:25]} 39. Nd4 {[%emt 0:00:33]} Bg3
{[%emt 0:00:11]} 40. Ne2 {[%emt 0:01:02]} Kd6 {[%emt 0:00:31]} 41. Nxf4 {
[%emt 0:00:11]} Bxf4 {[%emt 0:00:05]} 42. Kxf4 {[%emt 0:00:01]} Kd5 {[%emt 0:
00:00]} 43. a4 {[%emt 0:00:01]} Kc4 {[%emt 0:00:02]} 44. b5 {[%emt 0:00:01]}
axb5 {[%emt 0:00:00]} 45. axb5 {[%emt 0:00:01]} Kxb5 {[%emt 0:00:00]} 46. Kg5 {
[%emt 0:00:01]} h4 {[%emt 0:00:00]} 47. Kxh4 {[%emt 0:00:00]} 1/2-1/2

[Event "Magnus Carlsen Invitational 2021"]
[Site "Online"]
[Date "2021.03.10"]
[Round "9.3"]
[White "Van Foreest, Jorden"]
[Black "So, Wesley"]
[Result "0-1"]
[ECO "C45"]
[WhiteElo "2543"]
[BlackElo "2741"]
[Annotator "ChessBase"]
[PlyCount "110"]
[EventDate "2021.03.13"]
[EventType "tourn"]
[EventCountry "NET"]
[Tiebreak "Koya+Number of black wins+Number of wins"]
[SourceTitle "playchess.com"]
[Source "ChessBase"]
[SourceQuality "1"]
[TimeControl "900+10"]

1. e4 {[%emt 0:00:00]} e5 {[%emt 0:00:00]} 2. Nf3 {[%emt 0:00:00]} Nc6 {
[%emt 0:00:00]} 3. d4 {[%emt 0:00:00]} exd4 {[%emt 0:00:00]} 4. Nxd4 {[%emt 0:
00:00]} Nf6 {[%emt 0:00:00]} 5. Bb5 {[%emt 0:00:02]} Bc5 {[%emt 0:00:20]} 6.
Nb3 {[%emt 0:00:03]} Bb6 {[%emt 0:00:15]} 7. Nc3 {[%emt 0:00:05]} d6 {[%emt 0:
00:02]} 8. O-O {[%emt 0:00:06]} Bg4 {[%emt 0:00:10]} 9. Qd3 {[%emt 0:00:34]}
O-O {[%emt 0:00:08]} 10. Bxc6 {[%emt 0:00:02]} bxc6 {[%emt 0:00:00]} 11. a4 {
[%emt 0:00:17]} a5 {[%emt 0:00:22]} 12. Bg5 {[%emt 0:00:35]} h6 {[%emt 0:00:29]
} 13. Bh4 {[%emt 0:00:03]} g5 {[%emt 0:01:07]} 14. Bg3 {[%emt 0:00:04]} Nh5 {
[%emt 0:00:01]} 15. Nd4 {[%emt 0:01:00]} Bd7 {[%emt 0:00:34]} 16. Rad1 {
[%emt 0:00:51]} Qf6 {[%emt 0:00:44]} 17. e5 {[%emt 0:01:54]} dxe5 {[%emt 0:00:
42]} 18. Ne4 {[%emt 0:01:59]} Qg7 {[%emt 0:02:26]} 19. Nf3 {[%emt 0:00:03]} Be6
{[%emt 0:01:44]} 20. Bxe5 {[%emt 0:00:26]} f6 {[%emt 0:00:03]} 21. Ng3 {
[%emt 0:02:27]} fxe5 {[%emt 0:02:02]} 22. Nxh5 {[%emt 0:00:04]} Qf7 {[%emt 0:
00:01]} 23. Ng3 {[%emt 0:00:12]} Bc4 {[%emt 0:00:02]} 24. Qe4 {[%emt 0:00:06]}
Bxf1 {[%emt 0:00:03]} 25. Rxf1 {[%emt 0:00:00]} Rae8 {[%emt 0:00:03]} 26. h4 {
[%emt 0:00:07]} gxh4 {[%emt 0:01:09]} 27. Nxh4 {[%emt 0:01:10]} Bxf2+ {[%emt 0:
03:26]} 28. Kh1 {[%emt 0:00:04]} Re6 {[%emt 0:00:01]} 29. Qg4+ {[%emt 0:01:43]}
Kh7 {[%emt 0:00:03]} 30. Nh5 {[%emt 0:02:26]} Rg8 {[%emt 0:00:35]} 31. Qe2 {
[%emt 0:00:55]} Rf8 {[%emt 0:00:31]} 32. Qg4 {[%emt 0:00:19]} Qg8 {[%emt 0:00:
36]} 33. Qe4+ {[%emt 0:00:47]} Kh8 {[%emt 0:00:01]} 34. g3 {[%emt 0:00:44]} Qg5
{[%emt 0:00:39]} 35. Qe2 {[%emt 0:00:13]} Rd6 {[%emt 0:00:26]} 36. Kg2 {
[%emt 0:01:02]} Rdf6 {[%emt 0:01:05]} 37. Kh3 {[%emt 0:00:23]} Bxg3 {[%emt 0:
00:49]} 38. Nxg3 {[%emt 0:00:11]} Rxf1 {[%emt 0:00:01]} 39. Nxf1 {[%emt 0:00:
00]} Rf4 {[%emt 0:00:10]} 40. Nf3 {[%emt 0:00:26]} Qg4+ {[%emt 0:00:13]} 41.
Kh2 {[%emt 0:00:01]} Qxf3 {[%emt 0:00:12]} 42. Qxe5+ {[%emt 0:00:02]} Kh7 {
[%emt 0:00:00]} 43. Ng3 {[%emt 0:00:17]} Rh4+ {[%emt 0:00:13]} 44. Kg1 {
[%emt 0:00:01]} Rg4 {[%emt 0:00:01]} 45. Kh2 {[%emt 0:00:03]} Rg7 {[%emt 0:00:
34]} 46. b4 {[%emt 0:00:02]} axb4 {[%emt 0:00:07]} 47. a5 {[%emt 0:00:03]} c5 {
[%emt 0:00:08]} 48. a6 {[%emt 0:00:07]} c4 {[%emt 0:00:10]} 49. a7 {[%emt 0:00:
02]} b3 {[%emt 0:00:12]} 50. cxb3 {[%emt 0:00:02]} cxb3 {[%emt 0:00:00]} 51.
Qe1 {[%emt 0:01:14]} b2 {[%emt 0:00:14]} 52. Qb1+ {[%emt 0:00:04]} Rg6 {
[%emt 0:00:07]} 53. Qe1 {[%emt 0:00:18]} b1=Q {[%emt 0:00:05]} 54. a8=Q {
[%emt 0:00:01]} Qc2+ {[%emt 0:00:10]} 55. Kh3 {[%emt 0:00:03]} Qcg2+ {[%emt 0:
00:02]} 0-1